fUSD/lending_fUSD_20260521
["ID","MTS","AMOUNT","RATE_DAILY","PERIOD"]
[422760405,1779371543000,-1895.41550216,0.00039619,120]
[422760406,1779371543000,-1895.41550216,0.00039619,120]
[422760407,1779371543000,-1895.41550217,0.00039756,120]
[422760409,1779371543000,-1895.41550217,0.00039756,120]
[422760408,1779371543000,-1895.41550217,0.00039756,120]
[422760411,1779371543000,-1895.41550217,0.00039756,120]
[422760403,1779371543000,-1895.41550216,0.00039619,120]
[422760410,1779371543000,-1895.41550217,0.00039756,120]
[422760421,1779371544000,-500.0,0.00040132,60]
[422760419,1779371544000,-1895.41550216,0.00039756,120]
[422760416,1779371544000,-1895.41550216,0.00039756,120]
[422760412,1779371544000,-1895.41550217,0.00039756,120]
[422760415,1779371544000,-1895.41550216,0.00039756,120]
[422760413,1779371544000,-1895.41550217,0.00039756,120]
[422760414,1779371544000,-1895.41550216,0.00039756,120]
[422760418,1779371544000,-1895.41550216,0.00039756,120]
[422760420,1779371544000,-500.0,0.00039849,120]
[422760417,1779371544000,-1895.41550216,0.00039756,120]
[422760423,1779371544000,-1000000.0,0.00041,120]
[422760424,1779371544000,-1000000.0,0.00041,120]
[422760425,1779371544000,-1000000.0,0.00041,120]
[422760426,1779371544000,-1000000.0,0.00041,120]
[422760427,1779371544000,-1000000.0,0.00041,120]
[422760430,1779371544000,-1000000.0,0.00041,120]
[422760428,1779371544000,-1050048.0,0.00041,120]
[422760429,1779371544000,-469.17284075,0.00041,30]
[422760431,1779371544000,-1000000.0,0.00041,120]
[422760432,1779371544000,-354299.39802336,0.00041,120]
[422760422,1779371544000,-527067.22607959,0.00041,120]
[422760433,1779371549000,-287.79,0.00027611,30]
[422760435,1779371549000,-287.79,0.00027702,30]
[422760434,1779371549000,-157.4,0.00027627,30]
[422760436,1779371549000,-157.4,0.00027743,30]
[422760440,1779371549000,-157.4,0.00028091,30]
[422760438,1779371549000,-157.4,0.00027859,30]
[422760439,1779371549000,-157.4,0.00027975,30]
[422760441,1779371549000,-455.52,0.00039,30]
[422760437,1779371549000,-287.79,0.00027794,30]
[422760447,1779371550000,-162.0,0.00041,120]
[422760442,1779371550000,-210.0,0.00039483,120]
[422760443,1779371550000,-455.52,0.0004,30]
[422760445,1779371550000,-645700.60197664,0.00041,120]
[422760444,1779371550000,-210.0,0.00040483,120]
[422760446,1779371550000,-1000000.0,0.00041,120]
[422760451,1779371550000,-1000000.0,0.00041,120]
[422760449,1779371550000,-1000000.0,0.00041,120]
[422760450,1779371550000,-2000000.0,0.00041,120]
[422760452,1779371550000,-1000000.0,0.00041,120]
[422760454,1779371550000,-351155.98802336,0.00041,120]
[422760453,1779371550000,-1000000.0,0.00041,120]
[422760448,1779371550000,-1000000.0,0.00041,120]
[422760457,1779371559000,-166.74,0.00025046,30]
[422760455,1779371559000,-166.74,0.00022661,30]
[422760456,1779371559000,-166.74,0.00023854,30]
[422760459,1779371559000,-287.79,0.00027977,30]
[422760460,1779371559000,-287.79,0.00028068,30]
[422760461,1779371559000,-210.0,0.00029741,30]
[422760458,1779371559000,-287.79,0.00027885,30]
[422760462,1779371560000,-210.0,0.00030741,30]
[422760464,1779371560000,-210.0,0.00032741,30]
[422760463,1779371560000,-210.0,0.00031741,30]
[422760465,1779371560000,-210.0,0.00033741,30]
[422760466,1779371560000,-210.0,0.00034741,30]
[422760468,1779371560000,-450.0,0.00037511,30]
[422760470,1779371560000,-957.74820633,0.000397,30]
[422760469,1779371560000,-6341.14691419,0.00039482,35]
[422760472,1779371560000,-1000000.0,0.0004,120]
[422760471,1779371560000,-200.70262477,0.000397,30]
[422760473,1779371560000,-1000000.0,0.0004,120]
[422760474,1779371560000,-648844.01197664,0.00041,120]
[422760475,1779371560000,-1000000.0,0.00041,120]
[422760467,1779371560000,-210.0,0.00035741,30]
[422760488,1779371561000,-500.0,0.00041,45]
[422760487,1779371561000,-500.0,0.00041,45]
[422760486,1779371561000,-500.0,0.00041,45]
[422760485,1779371561000,-500.0,0.00041,45]
[422760484,1779371561000,-500.0,0.00041,45]
[422760483,1779371561000,-500.0,0.00041,45]
[422760480,1779371561000,-500.0,0.00041,45]
[422760481,1779371561000,-500.0,0.00041,45]
[422760478,1779371561000,-500.0,0.00041,45]
[422760489,1779371561000,-500.0,0.00041,45]
[422760479,1779371561000,-500.0,0.00041,45]
[422760477,1779371561000,-500.0,0.00041,45]
[422760476,1779371561000,-1000.0,0.00041,120]
[422760482,1779371561000,-500.0,0.00041,45]
[422760490,1779371561000,-500.0,0.00041,45]
[422760491,1779371561000,-500.0,0.00041,45]
[422760502,1779371561000,-1308130.99,0.00041,120]
[422760492,1779371561000,-500.0,0.00041,45]
[422760494,1779371561000,-5000.0,0.00041,120]
[422760496,1779371561000,-2000.0,0.00041,120]
[422760495,1779371561000,-1000.0,0.00041,120]
[422760497,1779371561000,-1653000.0,0.00041,120]
[422760499,1779371561000,-10127.6289897,0.00041,30]
[422760498,1779371561000,-1041392.0,0.00041,120]
[422760493,1779371561000,-199.900237,0.00041,45]
[422760500,1779371561000,-526.67736611,0.00041,30]
[422760501,1779371561000,-2459.49402746,0.00041,120]
[422760505,1779371561000,-407.0,0.00041,30]
[422760503,1779371561000,-1000000.0,0.00041,120]
[422760506,1779371561000,-269910.78534625,0.00041,120]
[422760504,1779371561000,-37218.32431155,0.00041,90]
[422760509,1779371573000,-1000000.0,0.0004,120]
[422760507,1779371573000,-500.0,0.00038274,60]
[422760508,1779371573000,-500.0,0.00039918,60]
[422760510,1779371573000,-1000000.0,0.0004,120]
[422760514,1779371573000,-163.62165702,0.00041,30]
[422760513,1779371573000,-1298555.29,0.00041,120]
[422760512,1779371573000,-571.65804277,0.00041,30]
[422760511,1779371573000,-738075.00465375,0.00041,120]
[422760516,1779371574000,-20199.96185941,0.00041,120]
[422760518,1779371574000,-566.00999351,0.00041,30]
[422760517,1779371574000,-19698.0,0.00041,120]
[422760520,1779371574000,-605023.02,0.00041,120]
[422760519,1779371574000,-673.0,0.00041,120]
[422760521,1779371574000,-5000.0,0.00041,120]
[422760529,1779371574000,-4648.02875431,0.00041,30]
[422760525,1779371574000,-1000.0,0.00041,120]
[422760523,1779371574000,-10000.0,0.00041,120]
[422760524,1779371574000,-2955.00993317,0.00041,120]
[422760526,1779371574000,-1002.09,0.00041,120]
[422760528,1779371574000,-1800.0,0.00041,120]
[422760527,1779371574000,-5000.0,0.00041,30]
[422760530,1779371574000,-1000000.0,0.00041,120]
[422760522,1779371574000,-5000.0,0.00041,120]
[422760531,1779371574000,-168792.52544211,0.00041,90]
[422760534,1779371574000,-550.57188902,0.00041,30]
[422760546,1779371574000,-4407.0,0.00041,120]
[422760547,1779371574000,-1142.0,0.00041,120]
[422760545,1779371574000,-3588.0,0.00041,120]
[422760543,1779371574000,-3588.0,0.00041,120]
[422760544,1779371574000,-3408.0,0.00041,120]
[422760542,1779371574000,-2533.0,0.00041,120]
[422760515,1779371574000,-330.02954616,0.00041,120]
[422760541,1779371574000,-12808.7679,0.00041,60]
[422760540,1779371574000,-120000.0,0.00041,60]
[422760538,1779371574000,-856.15172823,0.00041,120]
[422760537,1779371574000,-684.37579371,0.00041,120]
[422760535,1779371574000,-1295708.9,0.00041,120]
[422760536,1779371574000,-598943.48,0.00041,120]
[422760533,1779371574000,-1000.0,0.00041,120]
[422760539,1779371574000,-762.29651673,0.00041,120]
[422760532,1779371574000,-20537.07,0.00041,120]
[422760550,1779371575000,-3588.0,0.00041,120]
[422760548,1779371575000,-792.0,0.00041,120]
[422760549,1779371575000,-4316.72361917,0.00041,120]
[422760555,1779371575000,-20442.24062773,0.00041,120]
[422760552,1779371575000,-3102.34948791,0.00041,30]
[422760553,1779371575000,-3588.0,0.00041,120]
[422760554,1779371575000,-1000000.0,0.00041,120]
[422760551,1779371575000,-3599.82255529,0.00041,30]
[422760556,1779371579000,-1000000.0,0.0004,120]
[422760557,1779371579000,-1054441.75937227,0.00041,120]
[422760558,1779371579000,-1000000.0,0.00041,120]
[422760559,1779371579000,-1000000.0,0.00041,120]
[422760560,1779371579000,-455.52,0.00041,30]
[422760561,1779371579000,-1452.7,0.00041041,120]
[422760564,1779371579000,-384.79243061,0.00041095,120]
[422760565,1779371579000,-500.0,0.00041095,30]
[422760563,1779371579000,-231.11,0.0004109,120]
[422760567,1779371579000,-1000.0,0.00041095,30]
[422760566,1779371579000,-1000.0,0.00041095,30]
[422760562,1779371579000,-497.74,0.00041057,54]
[422760568,1779371579000,-1000.0,0.00041095,30]
[422760580,1779371579000,-800.0,0.00041096,30]
[422760569,1779371579000,-681.41451655,0.00041095,30]
[422760576,1779371579000,-1000.0,0.00041096,60]
[422760579,1779371579000,-1038.0,0.00041096,60]
[422760577,1779371579000,-1000.0,0.00041096,60]
[422760575,1779371579000,-50000.0,0.00041096,65]
[422760578,1779371579000,-1000.0,0.00041096,60]
[422760574,1779371579000,-50000.0,0.00041096,35]
[422760572,1779371579000,-164.85263737,0.00041096,120]
[422760570,1779371579000,-1000.0,0.00041095,120]
[422760571,1779371579000,-515.93150194,0.00041095,120]
[422760573,1779371579000,-349.0,0.00041096,120]
[422760594,1779371580000,-800.0,0.00041096,30]
[422760590,1779371580000,-800.0,0.00041096,30]
[422760593,1779371580000,-800.0,0.00041096,30]
[422760591,1779371580000,-800.0,0.00041096,30]
[422760589,1779371580000,-800.0,0.00041096,30]
[422760588,1779371580000,-800.0,0.00041096,30]
[422760582,1779371580000,-800.0,0.00041096,30]
[422760586,1779371580000,-800.0,0.00041096,30]
[422760585,1779371580000,-800.0,0.00041096,30]
[422760583,1779371580000,-800.0,0.00041096,30]
[422760584,1779371580000,-800.0,0.00041096,30]
[422760581,1779371580000,-800.0,0.00041096,30]
[422760592,1779371580000,-800.0,0.00041096,30]
[422760587,1779371580000,-800.0,0.00041096,30]
[422760595,1779371580000,-800.0,0.00041096,30]
[422760603,1779371580000,-800.0,0.00041096,30]
[422760598,1779371580000,-800.0,0.00041096,30]
[422760597,1779371580000,-800.0,0.00041096,30]
[422760611,1779371580000,-443.0,0.00041096,60]
[422760610,1779371580000,-1000.0,0.00041096,60]
[422760608,1779371580000,-1000.0,0.00041096,60]
[422760605,1779371580000,-1000.0,0.00041096,60]
[422760607,1779371580000,-1000.0,0.00041096,60]
[422760609,1779371580000,-1000.0,0.00041096,60]
[422760604,1779371580000,-800.0,0.00041096,30]
[422760602,1779371580000,-800.0,0.00041096,30]
[422760601,1779371580000,-800.0,0.00041096,30]
[422760599,1779371580000,-800.0,0.00041096,30]
[422760600,1779371580000,-800.0,0.00041096,30]
[422760596,1779371580000,-800.0,0.00041096,30]
[422760606,1779371580000,-1000.0,0.00041096,60]
[422760622,1779371581000,-800.0,0.00041096,30]
[422760625,1779371581000,-800.0,0.00041096,30]
[422760623,1779371581000,-800.0,0.00041096,30]
[422760624,1779371581000,-800.0,0.00041096,30]
[422760621,1779371581000,-800.0,0.00041096,30]
[422760627,1779371581000,-800.0,0.00041096,30]
[422760612,1779371581000,-800.0,0.00041096,30]
[422760618,1779371581000,-800.0,0.00041096,30]
[422760617,1779371581000,-800.0,0.00041096,30]
[422760615,1779371581000,-800.0,0.00041096,30]
[422760616,1779371581000,-800.0,0.00041096,30]
[422760613,1779371581000,-800.0,0.00041096,30]
[422760614,1779371581000,-800.0,0.00041096,30]
[422760619,1779371581000,-800.0,0.00041096,30]
[422760626,1779371581000,-800.0,0.00041096,30]
[422760620,1779371581000,-800.0,0.00041096,30]
[422760628,1779371581000,-800.0,0.00041096,30]
[422760629,1779371581000,-800.0,0.00041096,30]
[422760643,1779371581000,-834.092867,0.00041096,120]
[422760641,1779371581000,-834.092867,0.00041096,120]
[422760642,1779371581000,-834.092867,0.00041096,120]
[422760640,1779371581000,-834.092867,0.00041096,120]
[422760639,1779371581000,-229.0,0.00041096,120]
[422760638,1779371581000,-896.0,0.00041096,30]
[422760644,1779371581000,-834.092867,0.00041096,120]
[422760636,1779371581000,-800.0,0.00041096,30]
[422760635,1779371581000,-800.0,0.00041096,30]
[422760634,1779371581000,-800.0,0.00041096,30]
[422760631,1779371581000,-800.0,0.00041096,30]
[422760633,1779371581000,-800.0,0.00041096,30]
[422760632,1779371581000,-800.0,0.00041096,30]
[422760630,1779371581000,-800.0,0.00041096,30]
[422760637,1779371581000,-800.0,0.00041096,30]
[422760658,1779371582000,-834.092867,0.00041096,120]
[422760656,1779371582000,-834.092867,0.00041096,120]
[422760655,1779371582000,-834.092867,0.00041096,120]
[422760654,1779371582000,-834.092867,0.00041096,120]
[422760653,1779371582000,-834.092867,0.00041096,120]
[422760651,1779371582000,-834.092867,0.00041096,120]
[422760649,1779371582000,-834.092867,0.00041096,120]
[422760650,1779371582000,-834.092867,0.00041096,120]
[422760648,1779371582000,-834.092867,0.00041096,120]
[422760647,1779371582000,-834.092867,0.00041096,120]
[422760646,1779371582000,-834.092867,0.00041096,120]
[422760657,1779371582000,-834.092867,0.00041096,120]
[422760652,1779371582000,-834.092867,0.00041096,120]
[422760659,1779371582000,-834.092861,0.00041096,120]
[422760645,1779371582000,-834.092867,0.00041096,120]
[422760660,1779371582000,-1000.0,0.00041096,120]
[422760674,1779371582000,-150.0,0.00041096,60]
[422760673,1779371582000,-1090.0,0.00041096,120]
[422760672,1779371582000,-150.0,0.00041096,120]
[422760670,1779371582000,-10000.0,0.00041096,120]
[422760671,1779371582000,-10000.0,0.00041096,120]
[422760668,1779371582000,-10000.0,0.00041096,120]
[422760661,1779371582000,-291.0,0.00041096,120]
[422760666,1779371582000,-10000.0,0.00041096,120]
[422760667,1779371582000,-10000.0,0.00041096,120]
[422760665,1779371582000,-10000.0,0.00041096,120]
[422760663,1779371582000,-10000.0,0.00041096,120]
[422760664,1779371582000,-10000.0,0.00041096,120]
[422760662,1779371582000,-10000.0,0.00041096,120]
[422760669,1779371582000,-10000.0,0.00041096,120]
[422760689,1779371583000,-1077.49665173,0.000411,120]
[422760687,1779371583000,-1077.49665173,0.000411,120]
[422760686,1779371583000,-1077.49665173,0.000411,120]
[422760685,1779371583000,-1077.49665173,0.000411,120]
[422760684,1779371583000,-1077.49665173,0.000411,120]
[422760681,1779371583000,-151.0,0.000411,120]
[422760680,1779371583000,-150.0,0.000411,120]
[422760682,1779371583000,-150.0,0.000411,120]
[422760679,1779371583000,-2000.0,0.000411,120]
[422760678,1779371583000,-1000.0,0.000411,120]
[422760675,1779371583000,-221.37723923,0.00041096,120]
[422760676,1779371583000,-394.83,0.00041099,120]
[422760688,1779371583000,-1077.49665173,0.000411,120]
[422760683,1779371583000,-1077.49665173,0.000411,120]
[422760677,1779371583000,-5119.98099192,0.000411,120]
[422760690,1779371583000,-1077.49665173,0.000411,120]
[422760693,1779371583000,-1077.49665173,0.000411,120]
[422760691,1779371583000,-1077.49665173,0.000411,120]
[422760704,1779371583000,-2514.15885404,0.000411,120]
[422760705,1779371583000,-2514.15885404,0.000411,120]
[422760702,1779371583000,-1077.49,0.000411,120]
[422760703,1779371583000,-2514.15885404,0.000411,120]
[422760701,1779371583000,-1077.49665173,0.000411,120]
[422760700,1779371583000,-1077.49665173,0.000411,120]
[422760698,1779371583000,-1077.49665173,0.000411,120]
[422760697,1779371583000,-1077.49665173,0.000411,120]
[422760696,1779371583000,-1077.49665173,0.000411,120]
[422760695,1779371583000,-1077.49665173,0.000411,120]
[422760694,1779371583000,-1077.49665173,0.000411,120]
[422760692,1779371583000,-1077.49665173,0.000411,120]
[422760699,1779371583000,-1077.49665173,0.000411,120]
[422760714,1779371584000,-2514.15885404,0.000411,120]
[422760716,1779371584000,-2514.15885404,0.000411,120]
[422760717,1779371584000,-2514.15885404,0.000411,120]
[422760720,1779371584000,-2514.15885404,0.000411,120]
[422760715,1779371584000,-2514.15885404,0.000411,120]
[422760712,1779371584000,-2514.15885404,0.000411,120]
[422760707,1779371584000,-2514.15885404,0.000411,120]
[422760711,1779371584000,-2514.15885404,0.000411,120]
[422760709,1779371584000,-2514.15885404,0.000411,120]
[422760710,1779371584000,-2514.15885404,0.000411,120]
[422760708,1779371584000,-2514.15885404,0.000411,120]
[422760706,1779371584000,-2514.15885404,0.000411,120]
[422760713,1779371584000,-2514.15885404,0.000411,120]
[422760718,1779371584000,-2514.15885404,0.000411,120]
[422760725,1779371584000,-1969.20666836,0.000411,120]
[422760721,1779371584000,-2514.15885404,0.000411,120]
[422760719,1779371584000,-2514.15885404,0.000411,120]
[422760735,1779371584000,-1969.20666836,0.000411,120]
[422760734,1779371584000,-1969.20666836,0.000411,120]
[422760733,1779371584000,-1969.20666836,0.000411,120]
[422760730,1779371584000,-1969.20666836,0.000411,120]
[422760731,1779371584000,-1969.20666836,0.000411,120]
[422760732,1779371584000,-1969.20666836,0.000411,120]
[422760728,1779371584000,-1969.20666836,0.000411,120]
[422760727,1779371584000,-1969.20666836,0.000411,120]
[422760726,1779371584000,-1969.20666836,0.000411,120]
[422760724,1779371584000,-1969.20666836,0.000411,120]
[422760722,1779371584000,-2514.15,0.000411,120]
[422760723,1779371584000,-1969.20666836,0.000411,120]
[422760729,1779371584000,-1969.20666836,0.000411,120]
[422760743,1779371585000,-4594.8155595,0.000411,120]
[422760748,1779371585000,-4594.8155595,0.000411,120]
[422760747,1779371585000,-4594.8155595,0.000411,120]
[422760746,1779371585000,-4594.8155595,0.000411,120]
[422760745,1779371585000,-4594.8155595,0.000411,120]
[422760744,1779371585000,-4594.8155595,0.000411,120]
[422760736,1779371585000,-1969.20666836,0.000411,120]
[422760741,1779371585000,-1969.20666836,0.000411,120]
[422760739,1779371585000,-1969.20666836,0.000411,120]
[422760738,1779371585000,-1969.20666836,0.000411,120]
[422760737,1779371585000,-1969.20666836,0.000411,120]
[422760749,1779371585000,-4594.8155595,0.000411,120]
[422760742,1779371585000,-1969.2,0.000411,120]
[422760751,1779371585000,-4594.8155595,0.000411,120]
[422760740,1779371585000,-1969.20666836,0.000411,120]
[422760752,1779371585000,-4594.8155595,0.000411,120]
[422760750,1779371585000,-4594.8155595,0.000411,120]
[422760764,1779371585000,-803.55417158,0.000411,120]
[422760765,1779371585000,-803.55417158,0.000411,120]
[422760763,1779371585000,-803.55417158,0.000411,120]
[422760761,1779371585000,-4594.8155595,0.000411,120]
[422760762,1779371585000,-4594.81,0.000411,120]
[422760760,1779371585000,-4594.8155595,0.000411,120]
[422760766,1779371585000,-803.55417158,0.000411,120]
[422760759,1779371585000,-4594.8155595,0.000411,120]
[422760756,1779371585000,-4594.8155595,0.000411,120]
[422760757,1779371585000,-4594.8155595,0.000411,120]
[422760755,1779371585000,-4594.8155595,0.000411,120]
[422760754,1779371585000,-4594.8155595,0.000411,120]
[422760753,1779371585000,-4594.8155595,0.000411,120]
[422760758,1779371585000,-4594.8155595,0.000411,120]
[422760778,1779371586000,-803.55417158,0.000411,120]
[422760777,1779371586000,-803.55417158,0.000411,120]
[422760776,1779371586000,-803.55417158,0.000411,120]
[422760775,1779371586000,-803.55417158,0.000411,120]
[422760774,1779371586000,-803.55417158,0.000411,120]
[422760771,1779371586000,-803.55417158,0.000411,120]
[422760772,1779371586000,-803.55417158,0.000411,120]
[422760770,1779371586000,-803.55417158,0.000411,120]
[422760768,1779371586000,-803.55417158,0.000411,120]
[422760767,1779371586000,-803.55417158,0.000411,120]
[422760769,1779371586000,-803.55417158,0.000411,120]
[422760779,1779371586000,-803.55417158,0.000411,120]
[422760773,1779371586000,-803.55417158,0.000411,120]
[422760781,1779371586000,-803.55417158,0.000411,120]
[422760788,1779371586000,-1874.95973369,0.000411,120]
[422760780,1779371586000,-803.55417158,0.000411,120]
[422760796,1779371586000,-1874.95973369,0.000411,120]
[422760795,1779371586000,-1874.95973369,0.000411,120]
[422760792,1779371586000,-1874.95973369,0.000411,120]
[422760782,1779371586000,-803.55,0.000411,120]
[422760793,1779371586000,-1874.95973369,0.000411,120]
[422760790,1779371586000,-1874.95973369,0.000411,120]
[422760794,1779371586000,-1874.95973369,0.000411,120]
[422760791,1779371586000,-1874.95973369,0.000411,120]
[422760785,1779371586000,-1874.95973369,0.000411,120]
[422760787,1779371586000,-1874.95973369,0.000411,120]
[422760786,1779371586000,-1874.95973369,0.000411,120]
[422760783,1779371586000,-1874.95973369,0.000411,120]
[422760784,1779371586000,-1874.95973369,0.000411,120]
[422760789,1779371586000,-1874.95973369,0.000411,120]
[422760807,1779371587000,-192.52609046,0.0004115,120]
[422760803,1779371587000,-700.04098756,0.000411,120]
[422760809,1779371587000,-1404.31639804,0.00041184,120]
[422760808,1779371587000,-271.6586181,0.0004115,120]
[422760805,1779371587000,-330.0,0.00041119,90]
[422760806,1779371587000,-879.74564402,0.0004115,120]
[422760810,1779371587000,-854.81195697,0.00041194,120]
[422760802,1779371587000,-1874.95,0.000411,120]
[422760801,1779371587000,-1874.95973369,0.000411,120]
[422760798,1779371587000,-1874.95973369,0.000411,120]
[422760800,1779371587000,-1874.95973369,0.000411,120]
[422760797,1779371587000,-1874.95973369,0.000411,120]
[422760804,1779371587000,-20060.55742938,0.00041111,120]
[422760811,1779371587000,-394.83,0.00041199,120]
[422760799,1779371587000,-1874.95973369,0.000411,120]
[422760814,1779371587000,-189.78514416,0.000412,120]
[422760812,1779371587000,-1000.0,0.000412,120]
[422760826,1779371587000,-980.49,0.00041345,120]
[422760825,1779371587000,-1404.31639804,0.00041323,120]
[422760823,1779371587000,-2000.0,0.000413,120]
[422760824,1779371587000,-22500.0,0.0004131,120]
[422760821,1779371587000,-394.83,0.00041299,120]
[422760822,1779371587000,-1000.0,0.000413,120]
[422760827,1779371587000,-1096.0,0.00041347,30]
[422760820,1779371587000,-250.0,0.00041298,91]
[422760817,1779371587000,-10000.0,0.00041243,120]
[422760816,1779371587000,-1404.31639804,0.0004123,120]
[422760818,1779371587000,-1404.31639804,0.00041276,120]
[422760815,1779371587000,-269089.0,0.000412,30]
[422760813,1779371587000,-2000.0,0.000412,120]
[422760819,1779371587000,-200.0,0.0004128,30]
[422760838,1779371588000,-212.0,0.00041481,120]
[422760836,1779371588000,-1404.31639804,0.00041461,120]
[422760837,1779371588000,-433.6642,0.00041468,120]
[422760835,1779371588000,-298.772,0.00041422,56]
[422760834,1779371588000,-1404.31639804,0.00041415,120]
[422760829,1779371588000,-500.0,0.00041369,40]
[422760833,1779371588000,-500.0,0.00041411,120]
[422760831,1779371588000,-1000.0,0.000414,120]
[422760830,1779371588000,-394.83,0.00041399,120]
[422760828,1779371588000,-1404.31639804,0.00041369,120]
[422760839,1779371588000,-216.0,0.00041481,120]
[422760832,1779371588000,-2000.0,0.000414,120]
[422760840,1779371588000,-11023.1,0.00041482,117]
[422760842,1779371588000,-509.0,0.00041483,120]
[422760855,1779371588000,-500.0,0.000415,45]
[422760841,1779371588000,-151.0,0.00041483,120]
[422760854,1779371588000,-500.0,0.000415,45]
[422760853,1779371588000,-500.0,0.000415,45]
[422760852,1779371588000,-394.83,0.00041499,120]
[422760851,1779371588000,-304.0,0.00041494,120]
[422760850,1779371588000,-210.0,0.00041483,120]
[422760849,1779371588000,-151.0,0.00041483,120]
[422760847,1779371588000,-214.0,0.00041483,120]
[422760844,1779371588000,-180.0,0.00041483,120]
[422760846,1779371588000,-435.0,0.00041483,120]
[422760845,1779371588000,-236.0,0.00041483,120]
[422760843,1779371588000,-1474.0,0.00041483,120]
[422760848,1779371588000,-187.0,0.00041483,120]
[422760863,1779371589000,-500.0,0.000415,45]
[422760869,1779371589000,-5000.0,0.000415,120]
[422760866,1779371589000,-500.0,0.000415,45]
[422760865,1779371589000,-500.0,0.000415,45]
[422760864,1779371589000,-500.0,0.000415,45]
[422760861,1779371589000,-500.0,0.000415,45]
[422760867,1779371589000,-500.0,0.000415,45]
[422760860,1779371589000,-500.0,0.000415,45]
[422760858,1779371589000,-500.0,0.000415,45]
[422760859,1779371589000,-500.0,0.000415,45]
[422760857,1779371589000,-500.0,0.000415,45]
[422760856,1779371589000,-500.0,0.000415,45]
[422760862,1779371589000,-500.0,0.000415,45]
[422760868,1779371589000,-500.0,0.000415,45]
[422760885,1779371589000,-1404.31639804,0.000416,120]
[422760872,1779371589000,-977.40696227,0.000415,120]
[422760870,1779371589000,-1000.0,0.000415,120]
[422760884,1779371589000,-2000.0,0.000416,120]
[422760882,1779371589000,-394.83,0.00041599,120]
[422760883,1779371589000,-1000.0,0.000416,120]
[422760880,1779371589000,-1404.31639804,0.00041554,120]
[422760879,1779371589000,-1404.31639804,0.00041508,120]
[422760881,1779371589000,-500.0,0.00041562,120]
[422760877,1779371589000,-15000.0,0.000415,120]
[422760875,1779371589000,-1797.90056894,0.000415,120]
[422760876,1779371589000,-2331.81993071,0.000415,120]
[422760873,1779371589000,-1800.0,0.000415,120]
[422760874,1779371589000,-381.0,0.000415,30]
[422760871,1779371589000,-2000.0,0.000415,120]
[422760878,1779371589000,-18193.0585666,0.000415,120]
[422760894,1779371590000,-180.534006,0.0004167,65]
[422760897,1779371590000,-22500.0,0.00041688,120]
[422760896,1779371590000,-500.0,0.00041678,60]
[422760895,1779371590000,-10000.0,0.00041671,120]
[422760893,1779371590000,-250.0,0.00041649,120]
[422760892,1779371590000,-1194.23,0.00041644,120]
[422760898,1779371590000,-1452.7,0.00041694,120]
[422760890,1779371590000,-755.44,0.00041644,30]
[422760889,1779371590000,-500.0,0.00041643,50]
[422760887,1779371590000,-151.0,0.000416,120]
[422760888,1779371590000,-231.11,0.0004164,120]
[422760886,1779371590000,-459.77974031,0.000416,60]
[422760891,1779371590000,-648.56,0.00041644,30]
[422760899,1779371590000,-394.83,0.00041699,120]
[422760902,1779371590000,-50000.0,0.000417,120]
[422760900,1779371590000,-1000.0,0.000417,120]
[422760913,1779371590000,-550657.62247668,0.00041875,60]
[422760911,1779371590000,-415.19,0.00041858,120]